Cogmind - Beta 14 @@@ ROGUE MODE // 2024.12.01 @ 21:37:54 Player: Fangrelle Result: Destroyed by Y-45 Defender with Heavy Assault Rifle Performance ------------- Evolutions (0) 0 Regions Visited (2) 400 Robots Destroyed (37) 185 Value Destroyed (953) 953 Prototype IDs (0) 0 Alien Tech Used (0) 0 Bonus (0) 0 TOTAL SCORE: 1538 Bonus ------- None Cogmind --------- Core Integrity 0/250 Matter 290/300 Energy 170/170 System Corruption 0% Temperature Cool (9) Movement Rolling (120) Ox1 Location -10/Subcaves Parts ------- > --- POWER (1) -------- Makeshift Power Source > --- PROPULSION (2) --- Subdweller Monowheel > --- UTILITY (2) ------ Scrap Shield > --- WEAPON (2) ------- Hammer Makeshift Axe > --- INVENTORY (5) ---- Scrap Shield Barrage Gun Barrage Gun Shrapnel Trap Peak State ------------ > --- POWER ------------ Makeshift Power Source > --- PROPULSION ------- Subdweller Monowheel Subdweller Monowheel > --- UTILITY ---------- Scrap Shield > --- WEAPON ----------- Battle Rifle Makeshift Axe > --- INVENTORY -------- Barrage Gun Datajack Flamer Hammer Shrapnel Trap [Rating: 18] Favorites ----------- Power Ion Engine Engine Ion Engine Propulsion Light Treads Treads Light Treads Leg Aluminum Leg Wheel Subdweller Monowheel Utility Scrap Shield Device Seismic Detector Storage High-capacity Storage Unit Protection Scrap Shield Weapon Hammer Energy Gun Riot Gun Ballistic Gun Barrage Gun Special Weapon Mining Laser Impact Weapon Hammer Slashing Weapon Makeshift Axe Special Melee Weapon Datajack Build | -11 -10 -10 ------- Run | Yrd Mat Sub Slots Evolved . | . . . Power . | . . . Propulsion . | . . . Utility . | . . . Weapon . | . . . Parts Attached 45 | 1 20 24 Power 4 | . 3 1 Engine 4 | . 3 1 Core . | . . . Reactor . | . . . Propulsion 8 | . 5 3 Treads 6 | . 5 1 Leg . | . . . Wheel 2 | . . 2 Hover . | . . . Flight . | . . . Utility 17 | 1 5 11 Device 2 | 1 1 . Storage 3 | . 3 . Processor . | . . . Hackware . | . . . Protection 12 | . 1 11 Artifact . | . . . Weapon 16 | . 7 9 Energy Gun 6 | . 5 1 Energy Cannon . | . . . Ballistic Gun 3 | . . 3 Ballistic Cannon . | . . . Launcher . | . . . Special Weapon 1 | . 1 . Impact Weapon 4 | . 1 3 Slashing Weapon 1 | . . 1 Piercing Weapon . | . . . Special Melee Weapon 1 | . . 1 Unidentified Prototypes . | . . . Parts Lost 9 | . 5 4 Power 1 | . 1 . Propulsion 2 | . . 2 Utility 2 | . 1 1 Weapon 4 | . 3 1 Highest Loss Streak 2 | . 2 2 To Critical Strikes . | . . . Average Slot Usage (%) 88 | . 98 84 Engine 13 | . 13 14 Treads 25 | . 28 24 Wheel 1 | . . 2 Device 1 | . 6 . Storage 4 | . 13 1 Protection 12 | . 6 14 Energy Gun 14 | . 21 11 Ballistic Gun 1 | . . 1 Impact Weapon 9 | . 3 11 Peak Build Rating 18 | 8 9 18 Average Rating 12 | 6 8 14 On Entrance 7 | 6 8 9 Naked Turns . | . . . Heaviest Build 50 | 13 50 49 Greatest Support 40 | 20 40 40 Greatest Overweight (x) 8 | . 1 8 Average Overweight (x) . | . . . Largest Inventory Capacity 20 | 8 20 20 Average Capacity 9 | 8 18 6 Most Carried 20 | 8 20 20 Average Carried 7 | 6 14 5 Final Capacity 20 | 8 20 5 Final Carried 20 | 8 20 5 Class Distribution -------------------- 92% | Mutant 5% | Subdweller-Mutant Dominant Class ---------------- Mutant | -10/Materials Mutant | -10/Subcaves Resources | -11 -10 -10 ----------- Run | Yrd Mat Sub Matter Collected 1062 | 210 535 317 Remotely . | . . . Salvage Created 1486 | 125 739 622 Parts 78 | 5 47 26 Haulers Intercepted 2 | . 2 . Recyclers Shooed . | . . . Parts Field Recycled . | . . . Retrieved Matter . | . . . Parts Self-Destructed 11 | . . 11 Prevented . | . . . Kills | -11 -10 -10 ------- Run | Yrd Mat Sub Combat Hostiles Destroyed 27 | . 13 14 Melee 5 | . . 5 Guns 17 | . 12 5 Classes Destroyed 8 | 2 5 1 Worker 1 | . 1 . Tunneler 2 | 1 1 . Hauler 2 | . 2 . Recycler 2 | 1 1 . Watcher 3 | . 3 . Swarmer 7 | . 6 1 Grunt 7 | . 7 . Subdweller 13 | . . 13 Best Kill Streak 6 | 2 6 3 Combat Bots Only 3 | . 3 3 Max Kills in Single Turn 1 | 1 1 1 Gunslinging . | . . . Exploded . | . . . Melee 1 | . . 1 Uniques/NPCs Destroyed . | . . . Combat | -11 -10 -10 -------- Run | Yrd Mat Sub Hostile Shots Fired 184 | . 86 98 Missed 48 | . 25 23 Damage Taken 2250 | . 696 1554 Core 253 | . 114 139 Absorbed by Shields . | . . . Regen/Repaired (Parts) 56 | . 56 . Core Remaining (%) 100 | 100 . . Volleys Fired 91 | 6 65 20 Largest 2 | 2 2 2 Hottest 100 | 80 100 78 Shots Fired 165 | 12 119 34 Gun 163 | 12 117 34 Cannon . | . . . Launcher . | . . . Special 2 | . 2 . Kinetic 25 | . . 25 Thermal 44 | . 44 . Explosive . | . . . Electromagnetic 96 | 12 75 9 Robot Hit Streak 16 | 5 9 16 Robot Miss Streak 11 | 2 11 3 Penetration Max . | . . . Secondary Targets 4 | . 2 2 Max Gunslinging Chain 1 | . 1 1 Shots Hit Robots 126 | 6 64 56 Core Hits 46 | 3 27 16 Critical Kills 2 | . . 2 Critical Parts Destroyed 4 | . . 4 Critical Strikes 6 | . . 6 Smash 6 | . . 6 Melee Attacks 71 | . 3 68 Impact 69 | . 3 66 Slashing 2 | . . 2 Piercing . | . . . Sneak Attacks 1 | . 1 . Combat Hostiles . | . . . Follow-up Attacks . | . . . Damage Inflicted 2226 | 76 1001 1149 Guns 1382 | 76 895 411 Cannons . | . . . Explosions 62 | . 62 . Melee 782 | . 44 738 Ramming . | . . . Kinetic 322 | . . 322 Thermal 321 | . 321 . Explosive . | . . . Electromagnetic 801 | 76 636 89 Impact 782 | . 44 738 Slashing . | . . . Piercing . | . . . Highest Corruption . | . . . Average Corruption . | . . . Corruption Purged . | . . . Corruption Blocked . | . . . Overload Shots . | . . . Overflow Damage 156 | . 33 123 Projectiles . | . . . Explosions 9 | . 9 . Melee 147 | . 24 123 Knockbacks 8 | . . 8 Impact 8 | . . 8 Kinetic . | . . . Secondary . | . . . Self-Inflicted Damage . | . . . Shots . | . . . Rammed . | . . . Targets Rammed . | . . . Kicked . | . . . Crushed . | . . . Highest Temperature 368 | 92 368 27 Average Temperature 97 | 52 105 17 Received Heat Transfer 432 | . 321 111 Effects 2 | . 2 . Shutdowns 1 | . 1 . Damage (minor) 1 | . 1 . Siege Activations . | . . . Robots Corrupted 6 | . 2 4 Combat Hostiles 5 | . 1 4 Parts Fried 11 | 1 7 3 Impact Corruptions 8 | . 1 7 Robots Melted . | . . . Combat Hostiles . | . . . Parts Melted 1 | . 1 . Heat Transferred 675 | . 675 . Parts Sabotaged . | . . . Parts Stolen . | . . . Parts Stripped . | . . . Power Chain Reactions 2 | . 2 . Alert | -11 -10 -10 ------- Run | Yrd Mat Sub Peak Influence 217 | 10 217 . Initial 6 | . 6 . Average 53 | 7 54 . Maximum Alert Level 1 | . 1 . Low Security (%) 95 | 100 95 . Level 1 4 | . 4 . Level 2 . | . . . Level 3 . | . . . Level 4 . | . . . Level 5 . | . . . High Security . | . . . Max Security . | . . . Squads Dispatched 2 | . 2 . Investigation 2 | . 2 . Extermination . | . . . Reinforcement . | . . . Assault . | . . . Garrison . | . . . Intercept . | . . . Searches Triggered . | . . . Construction Impeded . | . . . Haulers Reinforced . | . . . Active Scanning Responses . | . . . Cargo Convoy Interrupts . | . . . Stealth | -11 -10 -10 --------- Run | Yrd Mat Sub Distress Signals 1 | . 1 . Communications Jammed . | . . . Distress Signals . | . . . Times Spotted 41 | . 23 18 Peak Tracking Total 4 | . 4 4 Tactical Retreats 5 | . 2 3 Traps | -11 -10 -10 ------- Run | Yrd Mat Sub Traps Triggered . | . . . Indirectly . | . . . Trap Hack Attempts 60 | . . 60 Triggered . | . . . Disarmed . | . . . Reprogrammed 6 | . . 6 Reused . | . . . Traps Extracted . | . . . Installed 1 | . . 1 Triggered . | . . . Most Traps Carried 1 | . . 1 Machines | -11 -10 -10 ---------- Run | Yrd Mat Sub Machines Disabled 2 | . 2 . Max in Single Turn 1 | . 1 . Machines Repaired . | . . . Machines Dismantled . | . . . Machines Sabotaged . | . . . Overloaded Fab Kills . | . . . Hacking | -11 -10 -10 --------- Run | Yrd Mat Sub Machines Accessed 11 | . 10 1 Terminals 7 | . 7 . Fabricators . | . . . Repair Stations 1 | . 1 . Recycling Units 2 | . 2 . Scanalyzers . | . . . Garrison Access . | . . . Total Hacks 42 | . 37 5 Successful 22 | . 17 5 Failed 20 | . 20 . Catastrophic . | . . . Database Lockouts . | . . . Manual 28 | . 28 . Terminals 26 | . 26 . Fabricators . | . . . Repair Stations 6 | . 6 . Recycling Units 5 | . 5 . Scanalyzers . | . . . Garrison Access . | . . . Terminal Hacks 8 | . 3 5 Record 5 | . . 5 Robot Analysis 3 | . 3 . Fabricator Hacks . | . . . Repair Station Hacks 3 | . 3 . Scan Component 1 | . 1 . Repair 1 | . 1 . Refit 1 | . 1 . Recycling Unit Hacks 1 | . 1 . Retrieve Components 1 | . 1 . Scanalyzer . | . . . Garrison Access Hacks . | . . . Unauthorized Hacks 10 | . 10 . Terminals 8 | . 8 . Assimilate 2 | . 2 . Botnet 5 | . 5 . Operators 1 | . 1 . Fabricators . | . . . Repair Stations . | . . . Recycling Units 2 | . 2 . Tunnel 2 | . 2 . Scanalyzers . | . . . Garrison Access . | . . . Data Cores Recovered . | . . . Used . | . . . Hacking Detections 9 | . 9 . Full Trace Events 1 | . 1 . Feedback Events . | . . . Feedback Blocked . | . . . Robot Schematics Acquired . | . . . Robots Built . | . . . Authchips . | . . . Time . | . . . Total Robot Build Rating . | . . . Part Schematics Acquired . | . . . Parts Built . | . . . Authchips . | . . . Time . | . . . Total Part Build Rating . | . . . Parts Repaired 1 | . 1 . Time 26 | . 26 . Parts Recycled . | . . . Recycled Matter . | . . . Retrieved Matter . | . . . Retrieved Components 10 | . 10 . Parts Scanalyzed . | . . . Part Schematics Acquired . | . . . Parts Damaged . | . . . Bothacking | -11 -10 -10 ------------ Run | Yrd Mat Sub Used RIF Installer . | . . . Robots Hacked . | . . . Non-combat . | . . . Combat . | . . . Robot Hacks Applied . | . . . Relay Couplers Released . | . . . Fabnet Peak Effective % . | . . . Robots Rewired . | . . . Allies Hacked . | . . . Hacks Repelled . | . . . Allies | -11 -10 -10 -------- Run | Yrd Mat Sub Total Allies 1 | . 1 . Largest Group 1 | . 1 1 Highest-Rated Group 10 | . 10 10 Highest-Rated Ally 10 | . 10 10 Total Orders 1 | . . 1 STAY 1 | . . 1 Ally Attacks . | . . . Total Damage . | . . . Kills . | . . . Allies Corrupted . | . . . Allies Melted . | . . . Intel | -11 -10 -10 ------- Run | Yrd Mat Sub Robot Analysis Total 3 | . 3 . Derelict Logs Recovered 1 | . . 1 Drone Launches . | . . . Drone Recoveries . | . . . Exploration | -11 -10 -10 ------------- Run | Yrd Mat Sub Turns Passed 8763 | 35 2427 6301 Spaces Moved 4104 | 12 895 3197 Core 28 | . . 28 Treads 3471 | . 895 2576 Legs 12 | 12 . . Wheels 593 | . . 593 Hover . | . . . Flight . | . . . Fastest Speed 110 | 120 160 110 Average Speed 172 | 120 225 158 Slowest Speed 450 | 120 240 450 Overloaded Moves . | . . . Propulsion Burnouts . | . . . Robots Hopped . | . . . Cave-ins Triggered . | . . . Exploration Rate (%) 62 | 2 99 87 Regions Visited 2 Branch Regions 1 Pre-discovered Areas 4 | . 2 2 Known Exits Taken . | . . . Unknown Exits Taken 2 | 1 1 . Scrap Searched 6 | . . 6 Spaces Dug 7 | . 4 3 Terrain Destroyed 8 | . 5 3 Melee 5 | . 2 3 Projectile 2 | . 2 . AOE 1 | . 1 . Terrain Rammed . | . . . Walls Destroyed . | . . . Machines Disabled . | . . . Actions | -11 -10 -10 --------- Run | Yrd Mat Sub Total 5490 | 20 1181 4289 Wait 997 | . 146 851 Move 4102 | 11 894 3197 Hop . | . . . Pick Up 61 | 2 36 23 Fast Attach 13 | 1 6 6 Attach 16 | . 5 11 Detach 5 | . 1 4 Swap 16 | . 9 7 Drop 44 | . 16 28 Fire 91 | 6 65 20 Melee 70 | . 3 67 Ram . | . . . Kick . | . . . Crush . | . . . Escape Stasis . | . . . Rewire . | . . . Trap 61 | . . 61 Miscellaneous 14 | . . 14 Route ------- -11/Scrapyard -10/Materials (discovered 5 exits: [*Mat x3] / [*Min] / *Sub) -10/Subcaves (discovered 3 exits: [*Mat x2] / Rec) History --------- Turn | Location | Event 20 | -11/Scrapyard | Discovered new exit (range 3) 36 | -11/Scrapyard | Entered Materials 264 | -10/Materials | Discovered new exit (range 16) 316 | -10/Materials | Build established: Mutant 1011 | -10/Materials | Discovered new exit (range 15) 1235 | -10/Materials | Repaired Ion Engine 1379 | -10/Materials | Discovered new exit (range 3) 2146 | -10/Materials | Discovered new exit (range 10) 2444 | -10/Materials | Discovered new exit (range 9) 2463 | -10/Materials | Entered Subcaves 2463 | -10/Subcaves | Accompanied by 1 ally 2545 | -10/Subcaves | Learned Materials security intel 2650 | -10/Subcaves | A swath of the cavern ceiling suddenly collapsed 2760 | -10/Subcaves | Shifting Twisted Machinery released Spk. Treads 2781 | -10/Subcaves | Discovered new exit (range 13) 2837 | -10/Subcaves | Shifting Twisted Machinery released Sub. Power Source 3132 | -10/Subcaves | Core integrity fell below 50% 3312 | -10/Subcaves | Visited Clippyterm 3316 | -10/Subcaves | Identified exit to Recycling 3316 | -10/Subcaves | Learned location of Section 7 (-2) 3361 | -10/Subcaves | Learned location of Zion (-6) 3361 | -10/Subcaves | Met a Zionite searching for "candidates" 3857 | -10/Subcaves | Shifting Twisted Machinery released Flamer 3874 | -10/Subcaves | Shifting Twisted Machinery released Barrage Gun 5712 | -10/Subcaves | Ambushed by Subdwellers from Twisted Machinery 5815 | -10/Subcaves | Discovered new exit (range 8) 6724 | -10/Subcaves | Shifting Twisted Machinery released Scrap Shield 6726 | -10/Subcaves | Shifting Twisted Machinery released Battle Rifle 8014 | -10/Subcaves | Core integrity fell below 20% 8391 | -10/Subcaves | Build established: Subdweller-Mutant 8764 | -10/Subcaves | Destroyed by Y-45 Defender with Heavy Assault Rifle Last Messages --------------- 08100_ Acquired Sub. Monowheel. 08101_ Acquired 10 matter. 08106_ Acquired Flamer. 08213_ Searching scrap... 08213_ Found Mak. Light Armor Plating. 08213_ Found 68 Matter. 08252_ D4-RR0(u) tweaks Twisted Machinery. 08256_ Dropped Battle Rifle. 08320_ Acquired 27 matter. 08505_ Dropped Shrapnel Trap. 08505_ Acquired Scrap Shield. 08506_ Dropped Scrap Shield. 08508_ Acquired Scrap Shield. 08509_ Dropped Flamer. 08510_ Acquired Shrapnel Trap. 08583_ Sub. Monowheel shoots sparks and powers down. 08584_ Dropped Broken Sub. Monowheel. 08642_ Dropped Datajack. 08643_ Acquired Barrage Gun. 08760_ S-10 Pest destroyed. Map ----- +----------------------------------------------------+ | ?????????????????????????????????????????????????? | | ??????????????????????????????????????????###???## | | ????????????????????????????????????????### #??## | | ????????????????????????????????????????# #?## | | ???????????????????????????????????????## ### | | ???????????????????????????????????????# # | | ?????????????????????????????????##?#### # | | ????????????????????????????????## ## # | | ????????????????????????????????# ### | | ???????????????????????????????## ##?## | | ???????????????????????????????# ##??# | | ???????????????????????????????## #??# | | ????????????????????????????????## #??## | | ?????????????????????????????????## ##??# | | ????????????????????????????????#?### #?# ## | | ???????????????????????????????## ??## ##?# ### | | ??????????????????????????????># ?# ##?## #?## | | ????????????????????????????????# ## ##?###??# | | ?????????????????????????????????# ####?### | | ????????????????????????????????## ## ### # | | ????????????? ?????????????????# # | | ????????????? ??????????????# """#" | | ??????????????# ?????????### ### ##""#"# # | | ????????????????# ??##?### ####??######""###### | | ????????????????# # ## # #????????###""#???? | | ????????????????????# Y @ #???????##"#""##" " | | ????????????????????# *% #??????## " "" "#"# | | ????????????????????### # # ####?### #"#"""#"## | | ??????????????????????##### ###"""#"#""#" " | | ??????????????????????????# ########"##" | | ??????????????????????????#### #??????### | | ?????????????????????????????### ####???????#### | | ???????????????????????????????#####?????????????? | | ?????????????????????????????????????????????????? | | ?????????????????????????????????????????????????? | | ?????????????????????????????????????????????????? | | ?????????????????????????????????????????????????? | | ?????????????????????????????????????????????????? | | ?????????????????????????????????????????????????? | | ?????????????????????????????????????????????????? | | ?????????????????????????????????????????????????? | | ?????????????????????????????????????????????????? | | ?????????????????????????????????????????????????? | | ?????????????????????????????????????????????????? | | ?????????????????????????????????????????????????? | | ?????????????????????????????????????????????????? | | ?????????????????????????????????????????????????? | | | | | | | +----------------------------------------------------+ Best States ------------- Heat Dissipation 25 Energy Generation 15 Energy Capacity 250 Matter Stores 300 Matter Capacity 300 Sight Range 16 Terrain Scan Density 10 Armor Coverage 800 Evasion (%) 45 Recoil Reduction 2 Item Schematics ----------------- None Robot Schematics ------------------ None Fabricated ------------ Nothing Alien Tech Used ----------------- None Achievements -------------- None Challenges ------------ None Game ------ Seed ReinforcedHackingProjector Manual? 0 Play Time 00:29:00 Cumulative 151.1 hours Start 2024.12.01 @ 21:08:49 End 2024.12.01 @ 21:37:54 Sessions 1 Manual Loads 0 Difficulty Rogue Special Mode None Game No. 282 Rogue 282 Adventurer 0 Explorer 0 Win Type - Total 0 Types 0/0/0/0/0/0/0/0/0 Lore% 45 Gallery% 41 Achievement% 36 Wizard Run 0 Options --------- Layout 0 ASCII 0 Keyboard 0 Movement Mouse Keybinds 0 Fullscreen 1 Font 24/Smallcaps Map View 91x25 Zoom Use 84% Tactical HUD 1 Map Filters NONE Filters NONE Steam 1 RUN: 4881dee7-443f-4d99-bcc0-7c24bceb4cb9